Cogmind - Beta 13 @@@ ROGUE MODE // 2024.04.10 @ 17:44:58 Player: Bace Troncons Result: Destroyed by G-34 Mercenary with Small Laser Performance ------------- Evolutions (1) 500 Regions Visited (2) 400 Robots Destroyed (13) 65 Value Destroyed (375) 375 Prototype IDs (5) 100 Alien Tech Used (0) 0 Bonus (200) 200 TOTAL SCORE: 1640 Bonus ------- Pacifist 200 Cogmind --------- Core Integrity 0/400 Matter 300/300 Energy 450/450 System Corruption 17% Temperature Cool (6) Movement Core (200) Ox3 Location -9/Materials Parts ------- > --- POWER (1) -------- Ion Engine > --- PROPULSION (3) --- (None) > --- UTILITY (3) ------ Small Battery Small Battery Trap Extractor (0/4) > --- WEAPON (2) ------- Heavy Hammer > --- INVENTORY (5) ---- Light Ion Engine Light Armor Plating Small Laser Advanced Beam Cannon Assault Rifle Peak State ------------ > --- POWER ------------ Light Nuclear Core > --- PROPULSION ------- Wheel Wheel > --- UTILITY ---------- Hacking Suite Hacking Suite Hacking Suite > --- WEAPON ----------- Shotgun Heavy Hammer > --- INVENTORY -------- Light Ion Engine Light Ion Engine Light Armor Plating Assault Rifle Light Assault Rifle [Rating: 18] Favorites ----------- Power Light Nuclear Core Engine Light Ion Engine Power Core Light Nuclear Core Propulsion Wheel Wheel Wheel Utility Hacking Suite Device Trap Extractor Storage Small Battery Hackware Hacking Suite Protection Light Armor Plating Weapon Heavy Hammer Ballistic Gun Shotgun Impact Weapon Heavy Hammer Build | -11 -10 -9 ------- Run | Yrd Mat Mat Slots Evolved 2 | . . 2 Power . | . . . Propulsion 1 | . . 1 Utility 1 | . . 1 Weapon . | . . . Parts Attached 22 | 2 3 17 Power 6 | . 1 5 Engine 4 | . 1 3 Core 2 | . . 2 Reactor . | . . . Propulsion 3 | 2 . 1 Treads . | . . . Leg . | . . . Wheel 3 | 2 . 1 Hover . | . . . Flight . | . . . Utility 8 | . . 8 Device 1 | . . 1 Storage 2 | . . 2 Processor . | . . . Hackware 4 | . . 4 Protection 1 | . . 1 Artifact . | . . . Weapon 5 | . 2 3 Energy Gun . | . . . Energy Cannon . | . . . Ballistic Gun 3 | . 2 1 Ballistic Cannon . | . . . Launcher . | . . . Special Weapon . | . . . Impact Weapon 2 | . . 2 Slashing Weapon . | . . . Piercing Weapon . | . . . Special Melee Weapon . | . . . Unidentified Prototypes . | . . . Parts Lost 10 | . . 10 Power 3 | . . 3 Propulsion 2 | . . 2 Utility 4 | . . 4 Weapon 1 | . . 1 Highest Loss Streak 8 | . . 8 To Critical Strikes . | . . . Average Slot Usage (%) 61 | . 66 60 Engine 3 | . 12 2 Core 6 | . . 7 Wheel 12 | . 28 10 Storage 6 | . . 7 Hackware 13 | . . 15 Ballistic Gun 10 | . 24 8 Impact Weapon 6 | . . 7 Naked Turns 5 | . . 5 Heaviest Build 14 | . 6 14 Greatest Support 20 | 20 20 20 Greatest Overweight (x) 3 | . . 3 Average Overweight (x) . | . . . Largest Inventory Capacity 5 | 5 5 5 Average Capacity 5 | 5 5 5 Most Carried 5 | 4 4 5 Average Carried 3 | 2 1 4 Final Capacity 5 | 5 5 5 Final Carried 5 | 4 1 5 Class Distribution -------------------- 57% | Mutant 42% | Hacker-Mutant Dominant Class ---------------- Mutant | -10/Materials Hacker-Mutant | -9/Materials Resources | -11 -10 -9 ----------- Run | Yrd Mat Mat Matter Collected 473 | 179 . 294 Remotely . | . . . Salvage Created 518 | . . 518 Parts 15 | . . 15 Haulers Intercepted . | . . . Recyclers Shooed . | . . . Parts Field Recycled . | . . . Retrieved Matter . | . . . Parts Self-Destructed . | . . . Prevented . | . . . Kills | -11 -10 -9 ------- Run | Yrd Mat Mat Combat Hostiles Destroyed 9 | . . 9 Melee 4 | . . 4 Guns 3 | . . 3 Classes Destroyed 7 | . . 7 Builder 1 | . . 1 Tunneler 1 | . . 1 Recycler 1 | . . 1 Mechanic 1 | . . 1 Grunt 6 | . . 6 Brawler 2 | . . 2 Sentry 1 | . . 1 Best Kill Streak 4 | . . 4 Combat Bots Only 4 | . . 4 Max Kills in Single Turn 1 | . . 1 Gunslinging . | . . . Exploded . | . . . Melee 1 | . . 1 Uniques/NPCs Destroyed . | . . . Combat | -11 -10 -9 -------- Run | Yrd Mat Mat Hostile Shots Fired 93 | . 7 86 Missed 22 | . 2 20 Damage Taken 984 | . 55 929 Core 412 | . 12 400 Absorbed by Shields . | . . . Regen/Repaired (Parts) 22 | . . 22 Core Remaining (%) 97 | 100 95 . Volleys Fired 11 | . . 11 Largest 2 | . . 2 Hottest 43 | . . 43 Shots Fired 17 | . . 17 Gun 17 | . . 17 Cannon . | . . . Launcher . | . . . Special . | . . . Kinetic 17 | . . 17 Thermal . | . . . Explosive . | . . . Electromagnetic . | . . . Robot Hit Streak 21 | . . 21 Robot Miss Streak 1 | . . 1 Penetration Max . | . . . Secondary Targets . | . . . Shots Hit Robots 36 | . . 36 Core Hits 11 | . . 11 Critical Kills 3 | . . 3 Critical Parts Destroyed 2 | . . 2 Critical Strikes 5 | . . 5 Smash 5 | . . 5 Melee Attacks 34 | . . 34 Impact 34 | . . 34 Slashing . | . . . Piercing . | . . . Sneak Attacks 5 | . . 5 Combat Hostiles . | . . . Follow-up Attacks . | . . . Damage Inflicted 1361 | . . 1361 Guns 275 | . . 275 Cannons . | . . . Explosions . | . . . Melee 1077 | . . 1077 Ramming 9 | . . 9 Kinetic 275 | . . 275 Thermal . | . . . Explosive . | . . . Electromagnetic . | . . . Impact 1077 | . . 1077 Slashing . | . . . Piercing . | . . . Highest Corruption 17 | . . 17 Average Corruption 16 | . . 16 Corruption Purged . | . . . Corruption Blocked . | . . . Effects 14 | . . 14 Message Errors 3 | . . 3 Matter Fused 3 | . . 3 Heat Flow Errors 3 | . . 3 Energy Discharges 1 | . . 1 Parts Rejected 1 | . . 1 Data Loss (minor) 1 | . . 1 Data Loss (major) 1 | . . 1 Misdirections 1 | . . 1 Overload Shots . | . . . Overflow Damage 274 | . . 274 Projectiles . | . . . Explosions . | . . . Melee 274 | . . 274 Knockbacks 1 | . . 1 Impact 1 | . . 1 Kinetic . | . . . Secondary . | . . . Self-Inflicted Damage 4 | . . 4 Shots . | . . . Rammed 3 | . . 3 Targets Rammed 3 | . . 3 Kicked . | . . . Crushed . | . . . Highest Temperature 241 | . . 241 Average Temperature 86 | . . 86 Received Heat Transfer 360 | . 30 330 Siege Activations . | . . . Robots Corrupted . | . . . Combat Hostiles . | . . . Parts Fried 13 | . . 13 Impact Corruptions 11 | . . 11 Robots Melted . | . . . Combat Hostiles . | . . . Parts Melted . | . . . Heat Transferred . | . . . Parts Sabotaged . | . . . Parts Stolen . | . . . Parts Stripped . | . . . Power Chain Reactions . | . . . Alert | -11 -10 -9 ------- Run | Yrd Mat Mat Peak Influence 164 | . 13 164 Initial 5 | . . 5 Average 60 | . 8 73 Maximum Alert Level . | . . . Low Security (%) 100 | 100 100 100 Level 1 . | . . . Level 2 . | . . . Level 3 . | . . . Level 4 . | . . . Level 5 . | . . . High Security . | . . . Max Security . | . . . Squads Dispatched 2 | . 1 1 Investigation . | . . . Extermination . | . . . Reinforcement 2 | . 1 1 Assault . | . . . Garrison . | . . . Intercept . | . . . Searches Triggered . | . . . Construction Impeded . | . . . Haulers Reinforced . | . . . Active Scanning Responses . | . . . Cargo Convoy Interrupts . | . . . Stealth | -11 -10 -9 --------- Run | Yrd Mat Mat Distress Signals 1 | . . 1 Communications Jammed . | . . . Distress Signals . | . . . Times Spotted 20 | . 6 14 Peak Tracking Total 5 | . 5 4 Tactical Retreats 1 | . . 1 Traps | -11 -10 -9 ------- Run | Yrd Mat Mat Traps Triggered 1 | . . 1 Indirectly . | . . . Trap Hack Attempts . | . . . Triggered . | . . . Disarmed 3 | . 3 . Reprogrammed . | . . . Reused . | . . . Traps Extracted . | . . . Installed . | . . . Triggered . | . . . Machines | -11 -10 -9 ---------- Run | Yrd Mat Mat Machines Disabled 1 | . . 1 Max in Single Turn 1 | . . 1 Machines Repaired . | . . . Machines Dismantled . | . . . Machines Sabotaged . | . . . Overloaded Fab Kills . | . . . Hacking | -11 -10 -9 --------- Run | Yrd Mat Mat Machines Accessed 6 | . 2 4 Terminals 4 | . 2 2 Fabricators . | . . . Repair Stations 1 | . . 1 Recycling Units . | . . . Scanalyzers 1 | . . 1 Garrison Access . | . . . Total Hacks 23 | . 11 12 Successful 14 | . 7 7 Failed 9 | . 4 5 Catastrophic . | . . . Database Lockouts . | . . . Manual 3 | . 3 . Terminals 17 | . 11 6 Fabricators . | . . . Repair Stations 2 | . . 2 Recycling Units . | . . . Scanalyzers 4 | . . 4 Garrison Access . | . . . Terminal Hacks 10 | . 7 3 Record 2 | . 2 . Robot Analysis 1 | . 1 . Prototype ID Bank 2 | . 2 . Branch Access Points 1 | . . 1 Emergency Access Points 1 | . . 1 Locate Traps 1 | . 1 . Disarm Traps 1 | . 1 . Zone Layout 1 | . . 1 Fabricator Hacks . | . . . Repair Station Hacks 2 | . . 2 Scan Component 1 | . . 1 Repair 1 | . . 1 Recycling Unit Hacks . | . . . Scanalyzer 2 | . . 2 Insert Component 1 | . . 1 Analyze 1 | . . 1 Garrison Access Hacks . | . . . Unauthorized Hacks . | . . . Terminals . | . . . Fabricators . | . . . Repair Stations . | . . . Recycling Units . | . . . Scanalyzers . | . . . Garrison Access . | . . . Data Cores Recovered . | . . . Used . | . . . Hacking Detections 5 | . 2 3 Full Trace Events 1 | . . 1 Feedback Events . | . . . Feedback Blocked . | . . . Robot Schematics Acquired . | . . . Robots Built . | . . . Authchips . | . . . Time . | . . . Total Robot Build Rating . | . . . Part Schematics Acquired 1 | . . 1 Parts Built . | . . . Authchips . | . . . Time . | . . . Total Part Build Rating . | . . . Parts Repaired 1 | . . 1 Time 26 | . . 26 Parts Recycled . | . . . Recycled Matter . | . . . Retrieved Matter . | . . . Retrieved Components . | . . . Parts Scanalyzed 1 | . . 1 Part Schematics Acquired 1 | . . 1 Parts Damaged . | . . . Bothacking | -11 -10 -9 ------------ Run | Yrd Mat Mat Used RIF Installer . | . . . Robots Hacked . | . . . Non-combat . | . . . Combat . | . . . Robot Hacks Applied . | . . . Relay Couplers Released . | . . . Fabnet Peak Effective % . | . . . Robots Rewired . | . . . Allies Hacked . | . . . Hacks Repelled . | . . . Allies | -11 -10 -9 -------- Run | Yrd Mat Mat Total Allies . | . . . Largest Group . | . . . Highest-Rated Group . | . . . Highest-Rated Ally . | . . . Total Orders . | . . . Ally Attacks . | . . . Total Damage . | . . . Kills . | . . . Allies Corrupted . | . . . Allies Melted . | . . . Intel | -11 -10 -9 ------- Run | Yrd Mat Mat Robot Analysis Total 1 | . 1 . Derelict Logs Recovered . | . . . Drone Launches . | . . . Drone Recoveries . | . . . Exploration | -11 -10 -9 ------------- Run | Yrd Mat Mat Turns Passed 712 | 45 90 577 Spaces Moved 491 | 48 101 342 Core 111 | 5 . 106 Treads . | . . . Legs . | . . . Wheels 380 | 43 101 236 Hover . | . . . Flight . | . . . Fastest Speed 50 | 50 80 50 Average Speed 99 | 76 80 108 Slowest Speed 200 | 80 80 200 Overloaded Moves . | . . . Propulsion Burnouts . | . . . Robots Hopped . | . . . Cave-ins Triggered . | . . . Exploration Rate (%) 14 | 3 21 19 Regions Visited 2 Branch Regions . Pre-discovered Areas . | . . . Known Exits Taken . | . . . Unknown Exits Taken 2 | 1 1 . Scrap Searched . | . . . Spaces Dug 1 | . . 1 Terrain Destroyed 1 | . . 1 Melee 1 | . . 1 Projectile . | . . . AOE . | . . . Terrain Rammed . | . . . Walls Destroyed . | . . . Machines Disabled . | . . . Actions | -11 -10 -9 --------- Run | Yrd Mat Mat Total 635 | 55 109 471 Wait 50 | . 6 44 Move 489 | 47 100 342 Hop . | . . . Pick Up 24 | 6 . 18 Fast Attach . | . . . Attach 17 | 2 3 12 Detach . | . . . Swap 5 | . . 5 Drop 2 | . . 2 Fire 11 | . . 11 Melee 34 | . . 34 Ram 3 | . . 3 Kick . | . . . Crush . | . . . Escape Stasis . | . . . Rewire . | . . . Trap . | . . . Miscellaneous . | . . . Route ------- -11/Scrapyard -10/Materials -9/Materials (discovered 1 exit: Min) History --------- Turn | Location | Event 8 | -11/Scrapyard | Discovered new exit (range 15) 46 | -11/Scrapyard | Entered Materials 128 | -10/Materials | Discovered new exit (range 5) 136 | -10/Materials | Entered another Materials area 136 | -9/Materials | Evolved 2 slots: Propulsion x1, Utility x1 217 | -9/Materials | Repaired Wheel 430 | -9/Materials | System corruption reached 10% 449 | -9/Materials | Core integrity fell below 50% 488 | -9/Materials | Lost 8 parts (2p2n3u1w) 607 | -9/Materials | Core integrity fell below 20% 649 | -9/Materials | Identified exit to Mines 713 | -9/Materials | Destroyed by G-34 Mercenary with Small Laser Last Messages --------------- (50,49) Mines Map updated. >>Layout(Zone) Retrieving Zone 3Z layout... Downloaded map data. 00664_ Acquired Trap Extractor. 00665_ U0SXRCST/6W5JRBBVZ1WBB 00680_ Acquired 20 matter. 00685_ Destroyed Heat Sink. 00685_ G-34 Mercenary system corrupted by crushing effect. 00687_ G-34 Mercenary suffers critical hit (Smash). 00687_ G-34 Mercenary destroyed. 00692_ Acquired Corrupted Sml. Laser. 00695_ :OZ6LK6GQ DC/PZCHQGTOYVI=#UM0X&H/ 00699_ W-16 Scout sends out distress signal. 00700_ Triggered Explosive Trap. 00700_ An explosion rips through the floor. 00706_ U-05 Engineer builds a Wall. Map ----- +----------------------------------------------------+ | ?????????????????????????????????????????????????? | | ?????????????????????????????????????????????????? | | ?????????????????????????????????????????????????? | | ?????????????????????????????????????????????????? | | ????????????????? """"" ### #?????????? | | ????????????????? #?????????? | | ????????????????? # #?????????? | | ????????????????? # #?????????? | | ????????????????? ############ #############???? | | ????????????????? #?????###??# #?# #???? | | ????????????????? #???### #### #?# """"" #???? | | ????????????????? #???# # #?# """"" #???? | | ????????????????? ##??#""" # #?# """"" #???? | | ????????????????? #??#"Y # #?# #???? | | ????????????????? #??#""" # #?# ###?? | | ????????????????? #??# + #?# + ?? | | ????????????????? > #??# # #?# ###?? | | ????????????????? ########### #######+#####???? | | ????????????????? ## # ##### #???##?? | | ????????????????? ## + T #???# ?? | | ????????????????? ### # ##### #???# ?? | | ????????????????? #?##########%##???# #???# ?? | | ????????????????? ########## r###??# #???# ?? | | ????????????????? # #??# #???# ?? | | ????????????????? # a u# #??# ######?? | | ????????????????? # @ u# #??# ?? | | ????????????????? # # #??# ?? | | ????????????????? k g # #??# ?? | | ?????????????[ # # "" #####+#######?? | | ??????????? # + "T ## # ?? | | ???????????? # # "" ## # "?? | | ????????????" " ########### ## # "?? | | ?????????????? T ############+### # "?? | | ????????????" " # # ?? | | ??????????? / ####?? | | ??????????? %% # #????? | | ??????????? ###+###### #? #????? | | ?????????????#####+##### # %# #?? #????? | | ???????????????????????# # % ## #??? #????? | | ???????????????????????# # % #? #???? #????? | | ???????????????????????# # #??#??????##????? | | ???????????????????????# # #???????????????? | | ???????????????????????# # !#???????????????? | | ???????????????????????# # #???????????????? | | ???????????????????????# # #???????????????? | | ???????????????????????# # "" "" #???????????????? | | ???????????????????????# # ""S"" #???????????????? | | ???????????????????????# # """" #########???????? | | ???????????????????????# ########## #???????? | | ???????????????????????# #?######## #???????? | +----------------------------------------------------+ Best States ------------- Heat Dissipation 28 Energy Generation 14 Energy Capacity 450 Matter Stores 300 Matter Capacity 300 Sight Range 16 Terrain Scan Density 10 Armor Coverage 150 Evasion (%) 50 Offensive Hacking 30 Trap Extractor Capacity 4 Item Schematics ----------------- Adv. Beam Cannon | -9/Materials | Scanalyzed Robot Schematics ------------------ None Fabricated ------------ Nothing Alien Tech Used ----------------- None Achievements -------------- None Challenges ------------ None Game ------ Seed GrapheneLargeStreamer Manual? 0 Play Time 00:15:52 Cumulative 14.3 hours Start 2024.04.10 @ 17:26:18 End 2024.04.10 @ 17:44:58 Sessions 1 Manual Loads 0 Difficulty Rogue Special Mode None Game No. 32 Rogue 32 Adventurer 0 Explorer 0 Win Type - Total 0 Types 0/0/0/0/0/0/0/0/0 Lore% 17 Gallery% 19 Achievement% 17 Wizard Run 0 Options --------- Layout 1 ASCII 0 Keyboard 1 Movement Numpad Keybinds 0 Fullscreen 1 Font 24/Smallcaps Map View 50x35 Zoom Use 0% Tactical HUD 1 Map Filters NONE Filters NONE Steam 1 RUN: 6c7cb850-aafd-4251-ac3d-a87164e209e8